bitfinex/quotes_ETHUSD_20251011
["timestamp","ask_amount","ask_price","bid_price","bid_amount"]
[1760140975158,0.13546065,3868.8,3859.6,6.28226533]
[1760140975362,0.001,3867.9,3859.6,7.51226533]
[1760140976610,0.001,3867.9,3859.6,8.74226533]
[1760140978060,0.001,3867.9,3859.6,9.97226533]
[1760140979628,0.001,3867.9,3859.6,11.20226533]
[1760140981023,0.001,3867.9,3859.6,12.43226533]
[1760140982244,0.0521966,3867.8,3859.6,13.66226533]
[1760140982450,0.0521966,3867.8,3861.5,22.5]
[1760140982639,0.0521966,3867.8,3861.5,27.809]
[1760140983550,0.0521966,3867.8,3861.5,5.309]
[1760140983745,0.0521966,3867.8,3861.5,6.539]
[1760140985218,0.0521966,3867.8,3861.5,7.769]
[1760140985415,0.001,3867.9,3861.5,7.769]
[1760140985659,0.05262784,3867.8,3861.5,7.769]
[1760140986217,0.001,3867.9,3861.5,7.769]
[1760140986618,0.001,3867.9,3861.5,8.999]
[1760140986818,0.05281662,3867.8,3861.5,8.999]
[1760140987522,0.001,3867.9,3861.5,8.999]
[1760140987924,0.001,3867.9,3861.5,10.229]
[1760140988152,0.0521966,3867.8,3861.5,10.229]
[1760140988325,0.0521966,3867.8,3861.9,22.5]
[1760140988651,0.13546065,3868.8,3861.9,22.5]
[1760140988652,0.00423239,3871.9,3861.9,27.8084]
[1760140988955,0.13521489,3867.7,3861.9,27.8084]
[1760140989316,0.00423239,3871.9,3861.9,29.0384]
[1760140989517,0.13521044,3867.6,3862.4,22.5]
[1760140989722,0.13521044,3867.6,3862.4,27.8078]
[1760140989915,0.00423239,3871.9,3862.4,27.8078]
[1760140990170,0.13520094,3867.5,3862.4,27.8078]
[1760140990352,0.00423239,3871.9,3862.4,27.7818933]
[1760140990551,0.00423239,3871.9,3862.8,22.5]
[1760140990721,0.13518004,3867.4,3862.8,27.8072]
[1760140990920,0.00423239,3871.9,3862.8,27.8072]
[1760140991454,0.13517849,3867.3,3865.0,22.5]
[1760140991615,0.00423239,3871.9,3865.0,27.8043]
[1760140992021,0.13518731,3867.5,3865.0,27.8043]
[1760140992273,0.00423239,3871.9,3865.0,29.0343]
[1760140992573,0.13514995,3867.4,3865.0,6.5343]
[1760140992881,0.00523239,3871.9,3865.0,6.5343]
[1760140993169,0.13519115,3867.3,3865.0,6.5343]
[1760140993339,0.00523239,3871.9,3866.1,22.5]
[1760140993524,0.00523239,3871.9,3866.1,27.8028]
[1760140993723,0.13517992,3867.2,3866.1,27.8028]
[1760140994023,0.00523239,3871.9,3866.1,27.8028]
[1760140994360,0.1351806,3867.1,3866.1,5.3028]
[1760140994554,0.00523239,3871.9,3866.1,5.3028]
[1760140994726,0.00523239,3871.9,3866.1,6.5328]
[1760140994938,0.13516786,3867.0,3866.1,6.5328]
[1760140995146,0.00523239,3871.9,3866.1,6.5328]
[1760140995341,0.00523239,3871.9,3867.2,22.5]
[1760140995549,0.00523239,3871.9,3867.2,27.8013]
[1760140995873,0.13513412,3871.8,3867.2,27.8013]
[1760140996176,0.13513412,3871.8,3867.2,29.0313]
[1760140996341,0.13513412,3871.8,3868.2,22.5]
[1760140996546,0.13513412,3871.8,3868.2,27.8]
[1760140997171,0.13513412,3871.8,3868.3,0.01561614]
[1760140997368,0.13513412,3871.8,3868.3,5.31551614]
[1760140997680,0.13513412,3871.8,3868.3,6.39473185]
[1760140999191,0.13513412,3871.8,3868.3,7.62473185]
[1760141000568,0.13513412,3871.8,3868.3,8.85473185]
[1760141000743,0.13513412,3871.8,3868.3,8.71953029]
[1760141002082,0.13513412,3871.8,3868.3,9.94953029]
[1760141003086,0.13513412,3871.8,3868.3,9.92367049]
[1760141003576,0.13513412,3871.8,3868.3,11.15367049]
[1760141003779,0.13513412,3871.8,3868.3,11.01848132]
[1760141004879,0.13513412,3871.8,3868.3,12.24848132]
[1760141006261,0.13513412,3871.8,3868.3,13.47848132]
[1760141007672,0.13513412,3871.8,3868.3,14.70848132]
[1760141009320,0.13513412,3871.8,3868.3,15.93848132]
[1760141009783,0.13513412,3871.8,3868.3,15.94048132]
[1760141009984,0.13613412,3871.8,3868.3,15.94048132]
[1760141010904,0.13613412,3871.8,3868.3,17.17048132]
[1760141012268,0.13613412,3871.8,3868.3,18.40048132]
[1760141013616,0.13613412,3871.8,3868.3,18.26518331]
[1760141013776,0.001,3871.8,3868.3,19.49518331]
[1760141013977,0.001,3871.8,3868.3,18.08318331]
[1760141015181,0.99999999,3871.5,3868.3,19.31318331]
[1760141015383,0.001,3871.8,3868.3,19.31318331]
[1760141016688,0.001,3871.8,3868.3,20.54318331]
[1760141016892,0.001,3871.8,3868.3,20.13903568]
[1760141018270,0.001,3871.8,3868.3,21.36903568]
[1760141019544,0.001,3871.8,3868.3,22.59903568]
[1760141021019,0.001,3871.8,3868.3,23.80317588]
[1760141022350,0.001,3871.8,3868.6,22.5]
[1760141022513,0.001,3871.8,3868.6,30.2082]
[1760141023453,0.001,3871.8,3868.8,22.5]
[1760141023755,0.001,3871.8,3868.8,30.2079]
[1760141023958,0.001,3871.8,3868.8,31.4379]
[1760141024617,0.001,3871.8,3868.8,8.9379]
[1760141024845,0.44899155,3886.9,3868.8,8.9379]
[1760141025018,0.00488401,3873.9,3868.8,8.9379]
[1760141025461,0.00488401,3873.9,3869.5,22.5]
[1760141025663,0.00488401,3873.9,3869.5,30.207]
[1760141026323,0.00488401,3873.9,3870.3,22.5]
[1760141026673,0.00488401,3873.9,3870.3,30.2059]
[1760141026874,0.00488401,3873.9,3870.3,31.4359]
[1760141027166,0.00488401,3873.9,3870.3,8.9359]
[1760141027738,0.00588401,3873.9,3870.3,8.9359]
[1760141028139,0.00588401,3873.9,3870.3,10.1659]
[1760141029158,0.00588401,3873.9,3870.4,0.00620375]
[1760141029322,0.00588401,3873.9,3870.4,7.71200375]
[1760141029528,0.13537393,3873.8,3870.4,8.80042607]
[1760141030227,0.00588401,3873.9,3870.4,8.80042607]
[1760141030424,0.4364,3882.3,3870.4,8.80042607]
[1760141030425,0.912884,3877.5,3870.4,8.80042607]
[1760141030660,0.912884,3875.6,3870.4,8.80042607]
[1760141030844,0.912884,3875.4,3870.4,10.03042607]
[1760141031052,7.06,3880.8,3870.4,10.03042607]
[1760141031053,0.13540848,3877.4,3870.4,10.03042607]
[1760141031255,0.912884,3876.2,3870.4,10.03042607]
[1760141031573,0.13540848,3877.4,3870.4,10.03042607]
[1760141031872,0.912884,3877.1,3870.4,10.11754206]
[1760141032019,0.912884,3876.8,3870.4,10.03042607]
[1760141032220,0.912884,3876.0,3870.4,11.26042607]
[1760141032641,0.912884,3876.8,3870.4,11.12498274]
[1760141032929,0.912884,3875.6,3870.4,11.12498274]
[1760141033128,0.912884,3876.8,3870.4,11.12498274]
[1760141033666,0.13540848,3877.4,3870.4,12.35498274]
[1760141033667,0.912884,3876.7,3870.4,12.35498274]
[1760141033827,0.912884,3875.6,3870.4,12.35498274]
[1760141034173,0.13540848,3877.4,3870.7,0.08711599]
[1760141034324,0.13540848,3877.4,3870.7,8.06331599]
[1760141034956,0.912884,3877.1,3870.7,7.9762]
[1760141035280,0.912884,3876.9,3870.7,9.2062]
[1760141035762,0.912884,3877.1,3870.7,9.07077644]
[1760141036515,0.13540848,3877.4,3870.7,10.30077644]
[1760141036808,0.912884,3876.6,3870.7,10.30077644]
[1760141036969,0.912884,3876.8,3870.7,10.30077644]
[1760141037171,0.13540848,3877.4,3870.7,10.38789243]
[1760141037689,0.13540848,3877.4,3870.7,10.30077644]
[1760141038011,0.912884,3876.8,3870.7,11.53077644]
[1760141038212,0.912884,3876.3,3870.7,11.53077644]
[1760141038421,0.912884,3876.1,3870.7,11.53077644]
[1760141038623,0.13540848,3877.4,3870.7,11.39531461]
[1760141038624,0.912884,3875.9,3870.7,11.39531461]
[1760141038915,0.912884,3875.3,3870.7,11.39531461]
[1760141039326,0.912884,3875.3,3870.7,12.62531461]
[1760141039606,0.912884,3876.2,3870.7,12.59945481]
[1760141040115,0.13540848,3877.4,3870.7,12.59945481]
[1760141040713,0.13540848,3877.4,3870.7,13.82945481]
[1760141041151,0.912884,3877.0,3870.7,13.82945481]
[1760141041352,0.13540848,3877.4,3870.7,13.82945481]
[1760141041353,0.912884,3876.7,3870.7,13.82945481]
[1760141041646,0.13540848,3877.4,3870.7,13.82945481]
[1760141042009,0.912884,3876.5,3870.7,13.82945481]
[1760141042225,0.912884,3876.4,3870.7,15.05945481]
[1760141042443,0.912884,3875.5,3870.7,15.05945481]
[1760141042625,0.912884,3875.4,3870.7,15.05945481]
[1760141042834,0.912884,3875.1,3870.7,15.05945481]
[1760141043150,0.912884,3875.4,3870.7,15.05945481]
[1760141043372,0.13540848,3877.4,3870.7,15.05945481]
[1760141043509,0.912884,3876.2,3870.7,16.28945481]
[1760141043999,0.13540848,3877.4,3870.7,16.28945481]
[1760141044199,0.11001478,3877.4,3870.7,16.28945481]
[1760141044436,0.912884,3877.2,3870.7,16.28945481]
[1760141044653,0.11001478,3877.4,3870.7,16.28945481]
[1760141044822,0.912884,3877.1,3870.7,16.28945481]
[1760141045017,0.912884,3877.1,3870.7,17.51945481]
[1760141045337,0.11101478,3877.4,3871.1,0.08711599]
[1760141045650,0.11101478,3877.4,3871.2,0.08711599]
[1760141045947,0.11101478,3877.4,3871.2,8.35941599]
[1760141046249,0.11101478,3877.4,3871.2,8.2723]
[1760141046407,0.11101478,3877.4,3871.2,9.5023]
[1760141046602,0.11101478,3877.4,3871.2,9.58941599]
[1760141046808,0.11101478,3877.4,3871.2,9.5023]
[1760141047052,0.11101478,3877.4,3871.2,9.36689449]
[1760141047053,0.912884,3877.0,3871.2,9.36689449]
[1760141047352,0.912884,3876.6,3871.2,9.36689449]
[1760141047563,0.912884,3876.4,3871.2,9.36689449]
[1760141047838,0.001,3877.4,3871.2,10.59689449]
[1760141048337,0.13535768,3877.3,3871.2,10.59689449]
[1760141048703,0.13535768,3877.3,3871.2,10.68401048]
[1760141048904,0.13535768,3877.3,3871.2,10.59689449]
[1760141049151,0.912884,3877.2,3871.2,11.82689449]
[1760141049326,0.912884,3877.0,3871.2,11.82689449]
[1760141049659,0.912884,3876.2,3871.2,11.82689449]
[1760141049948,0.912884,3876.9,3871.2,11.82689449]
[1760141050151,0.13535768,3877.3,3871.2,11.69152711]
[1760141050351,0.13535768,3877.3,3871.3,0.08711599]
[1760141050500,0.13535768,3877.3,3871.3,8.5429]
[1760141051610,0.13535768,3877.3,3871.7,0.08711599]
[1760141051806,0.13535768,3877.3,3871.7,8.62951599]
[1760141052042,0.13535768,3877.3,3871.7,8.5424]
[1760141053007,0.13535768,3877.3,3871.7,9.7724]
[1760141054542,0.13535768,3877.3,3871.7,11.0024]
[1760141054764,1.04824168,3877.3,3871.7,11.0024]
[1760141055306,0.13535768,3877.3,3871.7,11.0024]
[1760141055436,1.04824168,3877.3,3871.7,11.0024]
[1760141055748,0.13535768,3877.3,3871.7,11.0024]
[1760141055946,0.912884,3877.2,3871.7,12.2324]
[1760141056247,0.13535768,3877.3,3871.7,12.2324]
[1760141056547,0.13535768,3877.3,3871.7,12.1229102]
[1760141057209,0.13535768,3877.3,3871.7,13.3529102]
[1760141058152,0.13535768,3877.3,3871.7,13.3243877]
[1760141058538,0.13535768,3877.3,3871.7,14.5543877]
[1760141059518,0.001,3877.4,3871.7,14.5543877]
[1760141059914,0.001,3877.4,3871.7,15.7843877]
[1760141061242,0.912884,3878.1,3878.0,0.011]
[1760141061437,1.24309789,3886.5,3878.0,0.011]
[1760141061638,0.912884,3878.1,3878.0,0.011]
[1760141062451,0.912884,3877.4,3871.7,16.999481]
[1760141062620,0.005,3881.9,3871.7,18.229481]
[1760141062820,0.912884,3877.2,3871.7,18.229481]
[1760141063027,0.005,3881.9,3871.7,18.229481]
[1760141063324,0.912884,3877.2,3871.7,18.229481]
[1760141063534,0.912884,3877.0,3871.7,18.229481]
[1760141063858,0.912884,3876.7,3871.7,18.229481]
[1760141064054,0.912884,3876.9,3871.7,19.459481]
[1760141064228,0.912884,3876.5,3871.7,19.459481]
[1760141064746,0.912884,3876.9,3871.7,19.459481]
[1760141065136,1.57,3881.8,3871.7,19.459481]
[1760141065331,0.912884,3876.7,3871.7,20.689481]
[1760141065531,0.917884,3878.9,3871.7,20.689481]
[1760141065761,0.005,3878.9,3871.7,20.689481]
[1760141066058,0.917884,3878.9,3871.7,20.689481]
[1760141066353,0.005,3878.9,3871.7,20.689481]
[1760141066552,0.005,3878.9,3872.1,0.08711599]
[1760141066756,0.005,3878.9,3871.7,21.919481]
[1760141066963,0.912884,3878.8,3872.1,8.6948]
[1760141067252,0.912884,3878.4,3872.1,8.6948]
[1760141067460,0.005,3878.9,3872.1,8.6948]
[1760141068164,0.005,3878.9,3872.1,9.9248]
[1760141068459,0.005,3878.9,3872.2,0.08711599]
[1760141068663,0.005,3878.9,3872.3,0.08711599]
[1760141068957,0.005,3878.9,3872.3,8.6945]
[1760141069761,0.13529552,3878.1,3872.3,9.9245]
[1760141070961,0.13529552,3878.1,3872.3,11.1545]
[1760141071165,0.13529552,3878.1,3872.4,0.0171365]
[1760141071367,0.13529552,3878.1,3872.4,8.6944]
[1760141072276,0.13529552,3878.1,3872.4,9.9244]
[1760141073675,0.13529552,3878.1,3872.4,11.1544]
[1760141074677,0.01783857,3878.1,3872.4,11.1544]
[1760141074881,0.005,3878.9,3872.4,12.3844]
[1760141075248,0.13528019,3878.0,3872.4,12.3844]
[1760141076244,0.13528019,3878.0,3872.4,13.6144]
[1760141076584,0.13528019,3878.0,3872.8,0.08711599]
[1760141076747,0.13528019,3878.0,3872.9,0.00777447]
[1760141076947,0.13528019,3878.0,3872.8,8.6938]
[1760141077548,0.13528019,3878.0,3872.8,9.9238]
[1760141078766,0.005,3878.9,3872.8,9.9238]
[1760141079005,1.57,3881.8,3872.8,11.1538]
[1760141079006,0.6092419,3881.5,3872.8,11.1538]
[1760141079164,0.13521117,3878.1,3872.8,11.1538]
[1760141079688,25.6092419,3880.0,3872.8,11.1538]
[1760141079901,0.001,3878.0,3872.8,11.1538]
[1760141080269,0.001,3878.0,3873.3,0.39075809]
[1760141080484,0.001,3878.0,3873.4,22.5]
[1760141080702,0.001,3878.0,3873.5,0.39075809]
[1760141081012,0.001,3878.0,3873.5,9.08365809]
[1760141081193,0.001,3878.0,3873.5,8.6929]
[1760141081373,0.001,3878.0,3873.5,31.1929]
[1760141081887,0.001,3878.0,3873.5,32.4229]
[1760141082628,0.001,3878.0,3873.5,9.9229]
[1760141083182,0.001,3878.0,3873.5,11.1529]
[1760141083911,24.853,3880.0,3873.5,11.1529]
[1760141084479,24.853,3880.0,3873.5,12.3829]
[1760141085419,24.853,3880.0,3874.2,22.5]
[1760141085633,24.853,3880.0,3874.2,31.192]
[1760141085798,24.853,3880.0,3874.2,32.422]
[1760141086402,24.853,3880.0,3874.2,9.922]
[1760141087533,24.853,3880.0,3874.2,11.152]
[1760141088934,24.853,3880.0,3874.2,12.382]
[1760141090220,24.853,3880.0,3874.2,13.612]
[1760141091603,24.853,3880.0,3874.2,14.842]
[1760141093156,24.853,3880.0,3874.2,16.072]
[1760141094231,0.6092419,3879.7,3874.2,16.072]
[1760141094428,0.6092419,3879.7,3874.2,17.302]
[1760141094664,24.853,3880.0,3874.2,17.302]
[1760141095815,24.853,3880.0,3874.2,18.532]
[1760141097453,24.853,3880.0,3874.2,19.762]
[1760141098532,24.854,3880.0,3874.2,19.762]
[1760141098720,24.854,3880.0,3874.2,20.992]
[1760141099954,24.854,3880.0,3874.2,22.222]
[1760141100340,0.6092419,3879.8,3874.2,22.222]
[1760141100541,24.854,3880.0,3874.2,22.222]
[1760141100748,0.6092419,3879.8,3874.2,22.222]
[1760141100948,0.6092419,3879.8,3874.3,0.02581111]
[1760141101150,24.854,3880.0,3874.3,8.71761111]
[1760141101326,24.854,3880.0,3874.3,8.6918]
[1760141101530,24.854,3880.0,3874.3,9.9218]
[1760141101923,24.854,3880.0,3874.3,10.31255809]
[1760141102337,24.854,3880.0,3875.8,22.5]
[1760141102625,24.854,3880.0,3875.8,31.1898]
[1760141102825,24.854,3880.0,3875.8,32.4198]
[1760141103536,24.854,3880.0,3875.8,9.9198]
[1760141104228,0.1288,3876.4,3875.8,11.1498]
[1760141104432,24.854,3880.0,3876.3,22.5]
[1760141104633,24.854,3880.0,3876.3,31.1892]
[1760141105465,24.854,3880.0,3877.1,22.5]
[1760141105642,24.854,3880.0,3877.1,31.1881]
[1760141106452,24.854,3880.0,3877.1,8.6881]
[1760141106650,24.8349824,3880.0,3877.1,8.6881]
[1760141107163,24.8349824,3880.0,3877.1,10.30885809]
[1760141107383,24.8349824,3880.0,3879.0,22.5]
[1760141107668,24.8349824,3880.0,3879.0,31.1856]
[1760141108358,24.8349824,3880.0,3879.0,8.6856]
[1760141108574,24.8349824,3880.0,3879.0,9.9156]
[1760141109541,24.96996378,3880.0,3879.4,22.5]
[1760141109743,24.96996378,3880.0,3879.4,32.415]
[1760141110331,24.96996378,3880.0,3879.5,22.5]
[1760141110571,24.96996378,3880.0,3879.5,31.1849]
[1760141111346,24.96996378,3880.0,3879.5,9.9149]
[1760141111705,24.8349824,3880.0,3879.5,9.9149]
[1760141112332,24.8349824,3880.0,3879.5,32.4149]
[1760141112736,24.8349824,3880.0,3879.5,33.6449]
[1760141113467,24.8349824,3880.0,3879.5,11.1449]
[1760141114029,24.8349824,3880.0,3879.5,12.3749]
[1760141115588,24.8349824,3880.0,3879.5,13.6049]
[1760141116399,24.8051391,3880.0,3879.5,13.6049]
[1760141116952,24.8051391,3880.0,3879.5,14.8349]
[1760141117668,24.8051391,3880.0,3879.5,14.73041568]
[1760141118372,24.8051391,3880.0,3879.5,15.96041568]
[1760141119563,24.8051391,3880.0,3879.5,17.19041568]
[1760141119987,24.8051391,3880.0,3879.5,17.05529428]
[1760141120181,0.13512797,3879.9,3879.5,16.68229428]
[1760141120391,0.6092419,3879.7,3879.5,16.68229428]
[1760141120753,0.13512797,3879.9,3879.5,16.68229428]
[1760141120969,0.13512797,3879.9,3879.5,17.91229428]
[1760141122270,0.13512797,3879.9,3879.5,19.14229428]
[1760141123571,0.13512797,3879.9,3879.5,20.37229428]
[1760141124105,0.13512797,3879.9,3879.5,20.2371383]
[1760141124265,24.8051391,3880.0,3879.5,20.2371383]
[1760141124466,0.13516249,3879.8,3879.5,20.2371383]
[1760141124887,0.13516249,3879.8,3879.5,21.4671383]
[1760141125662,0.6092419,3879.7,3879.5,21.4671383]
[1760141125858,0.13516249,3879.8,3879.5,21.4671383]
[1760141126210,0.6092419,3879.7,3879.5,21.9671383]
[1760141126363,0.6092419,3879.7,3879.5,23.1971383]
[1760141127110,0.74440439,3879.8,3879.5,23.1971383]
[1760141127403,0.6092419,3879.6,3879.5,23.06194828]
[1760141127563,0.13519531,3879.7,3879.5,23.06194828]
[1760141127758,0.13519531,3879.7,3879.5,24.29194828]
[1760141127759,0.6092419,3879.6,3879.5,24.29194828]
[1760141129066,0.6092419,3879.6,3879.5,25.52194828]
[1760141129666,0.13519531,3879.7,3879.5,25.52194828]
[1760141129911,0.6092419,3879.6,3879.5,25.52194828]
[1760141130265,0.6092419,3879.6,3879.5,25.386732]
[1760141130511,0.6092419,3879.6,3879.5,26.616732]
[1760141130512,0.74445739,3879.6,3879.5,26.616732]
[1760141131199,0.13521549,3879.6,3879.5,26.616732]
[1760141131430,0.74445739,3879.6,3879.5,26.616732]
[1760141131809,0.74445739,3879.6,3879.5,27.846732]
[1760141133228,0.74445739,3879.6,3879.5,28.941489]
[1760141133229,0.6092419,3879.6,3879.5,28.941489]
[1760141133726,0.74448783,3879.6,3879.5,28.941489]
[1760141133929,0.13524593,3879.6,3879.5,28.943489]
[1760141134296,0.74448783,3879.6,3879.5,28.943489]
[1760141134597,0.74448783,3879.6,3879.5,30.173489]
[1760141135907,0.74448783,3879.6,3879.5,31.403489]
[1760141136319,0.6092419,3879.6,3879.5,31.26822556]
[1760141136495,0.6092419,3879.6,3879.5,23.872]
[1760141137339,0.6092419,3879.6,3879.5,25.102]
[1760141138196,0.6092419,3879.6,3879.5,25.0762268]
[1760141138424,0.6092419,3879.6,3879.5,23.872]
[1760141138627,0.6092419,3879.6,3879.5,25.102]
[1760141139127,1.0462419,3879.6,3879.5,25.102]
[1760141139332,2.0462419,3879.6,3879.5,24.96658758]
[1760141139496,1.6092419,3879.6,3879.5,23.95848235]
[1760141140119,0.6092419,3879.6,3879.5,25.63298235]
[1760141140305,0.001,3879.9,3879.5,25.63298235]
[1760141140638,19.9618,3880.0,3879.5,25.18848235]
[1760141141632,19.9618,3880.0,3879.5,26.41848235]
[1760141142253,19.9618,3880.0,3879.5,26.28319838]
[1760141143110,19.9618,3880.0,3879.5,27.51319838]
[1760141143624,19.44857753,3880.0,3879.5,27.51319838]
[1760141144339,19.44857753,3880.0,3879.5,28.74319838]
[1760141145654,19.44857753,3880.0,3879.5,29.97319838]
[1760141146067,19.44857753,3880.0,3879.5,35.12819838]
[1760141146612,19.41564057,3880.0,3879.5,35.12819838]
[1760141147045,18.16564057,3880.0,3879.5,36.35819838]
[1760141147216,18.1449405,3880.0,3879.5,36.35819838]
[1760141147608,18.1059261,3880.0,3879.5,36.35819838]
[1760141148443,18.1059261,3880.0,3879.5,37.58819838]
[1760141149820,18.1059261,3880.0,3879.5,38.81819838]
[1760141150918,18.1059261,3880.0,3879.5,38.68295673]
[1760141151138,18.1059261,3880.0,3879.5,39.91295673]
[1760141152431,18.1059261,3880.0,3879.5,41.14295673]
[1760141152627,18.1059261,3880.0,3879.5,40.97761194]
[1760141153822,18.1069261,3880.0,3879.5,42.20761194]
[1760141154023,18.1069261,3880.0,3879.5,42.07234557]
[1760141154346,18.1069261,3880.0,3879.5,41.9370831]
[1760141155236,18.1069261,3880.0,3879.5,43.1670831]
[1760141156790,18.1069261,3880.0,3879.5,44.3970831]
[1760141156926,18.1069261,3880.0,3879.5,44.26180754]
[1760141157821,17.61863905,3880.0,3879.5,44.26180754]
[1760141158155,0.13528316,3879.9,3879.5,45.49180754]
[1760141159433,0.13528316,3879.9,3879.5,46.72180754]
[1760141160038,17.61863905,3880.0,3879.5,46.58652908]
[1760141160776,17.0124644,3880.0,3879.5,47.81652908]
[1760141160982,16.9280964,3880.0,3879.5,47.81652908]
[1760141161792,16.8639655,3880.0,3879.5,47.81652908]
[1760141162400,16.8639655,3880.0,3879.5,49.04652908]
[1760141163495,16.49767637,3880.0,3879.5,49.04652908]
[1760141163654,16.48849447,3880.0,3879.5,50.27652908]
[1760141165152,16.48849447,3880.0,3879.5,51.50652908]
[1760141165380,16.47456434,3880.0,3879.5,51.50652908]
[1760141166458,16.47456434,3880.0,3879.5,52.73652908]
[1760141167902,16.47456434,3880.0,3879.5,53.96652908]
[1760141169112,16.47456434,3880.0,3879.5,53.46652908]
[1760141169260,16.47456434,3880.0,3879.5,54.69652908]
[1760141170701,16.47456434,3880.0,3879.5,55.92652908]
[1760141172297,16.47456434,3880.0,3879.5,57.15652908]
[1760141173825,16.47456434,3880.0,3879.5,58.38652908]
[1760141174314,16.47456434,3880.0,3879.5,58.36075588]
[1760141175198,16.47456434,3880.0,3879.5,59.59075588]
[1760141176497,16.47456434,3880.0,3879.5,60.82075588]
[1760141177806,16.47456434,3880.0,3879.5,62.05075588]
[1760141179432,16.47456434,3880.0,3879.5,63.28075588]
[1760141180031,15.97456434,3880.0,3879.5,63.28075588]
[1760141180898,15.97456434,3880.0,3879.5,64.51075588]
[1760141182515,15.97456434,3880.0,3879.5,65.74075588]
[1760141183927,15.97456434,3880.0,3879.5,66.97075588]
[1760141185342,15.97456434,3880.0,3879.5,68.20075588]
[1760141186850,15.97456434,3880.0,3879.5,69.43075588]
[1760141188275,15.97456434,3880.0,3879.5,70.66075588]
[1760141189467,15.97456434,3880.0,3879.5,71.89075588]
[1760141190978,15.97456434,3880.0,3879.5,73.12075588]
[1760141192275,15.97456434,3880.0,3879.5,74.32498268]
[1760141193682,15.97456434,3880.0,3879.5,75.55498268]
[1760141195059,15.97456434,3880.0,3879.5,76.78498268]
[1760141196565,15.97456434,3880.0,3879.5,78.01498268]
[1760141197906,15.97456434,3880.0,3879.5,79.24498268]
[1760141199420,15.97456434,3880.0,3879.5,80.47498268]
[1760141199571,15.97456434,3880.0,3879.5,80.33981111]
[1760141199772,0.13517157,3879.9,3879.5,80.33981111]
[1760141200896,0.13517157,3879.9,3879.5,81.56981111]
[1760141202339,0.13517157,3879.9,3879.5,82.79981111]
[1760141202628,0.13517157,3879.9,3879.5,82.66464197]
[1760141203595,0.13517157,3879.9,3879.5,83.89464197]
[1760141205121,0.13517157,3879.9,3879.5,85.12464197]
[1760141205820,0.13517157,3879.9,3879.5,84.98953686]
[1760141206537,0.13517157,3879.9,3879.5,86.21953686]
[1760141207918,0.13517157,3879.9,3879.5,87.44953686]
[1760141208694,0.13517157,3879.9,3879.5,87.31445408]
[1760141209223,0.13517157,3879.9,3879.5,88.54445408]
[1760141210605,0.13517157,3879.9,3879.5,89.77445408]
[1760141211814,0.13517157,3879.9,3879.5,89.63931646]
[1760141212126,0.13517157,3879.9,3879.5,90.86931646]
[1760141213415,0.13517157,3879.9,3879.5,92.09931646]
[1760141213925,0.13517157,3879.9,3879.5,92.07354326]
[1760141214824,0.13517157,3879.9,3879.5,93.1684009]
[1760141216230,0.13517157,3879.9,3879.5,94.3984009]
[1760141217641,0.13517157,3879.9,3879.5,95.6284009]
[1760141217844,0.13517157,3879.9,3879.5,95.49324556]
[1760141218912,0.13517157,3879.9,3879.5,96.72324556]
[1760141220334,0.13517157,3879.9,3879.5,97.95324556]
[1760141221508,0.13517157,3879.9,3879.5,98.95324555]
[1760141221739,0.13517157,3879.9,3879.6,0.99999999]
[1760141221949,0.13517157,3879.9,3879.6,5.1551]
[1760141223045,0.13617157,3879.9,3879.6,6.3851]
[1760141224149,0.13617157,3879.9,3879.7,0.99999999]
[1760141224307,0.13617157,3879.9,3879.7,5.155]
[1760141224513,0.13617157,3879.9,3879.7,6.15499999]
[1760141224844,0.13617157,3879.9,3879.7,5.155]
[1760141225648,0.13617157,3879.9,3879.7,6.385]
[1760141226739,0.13617157,3879.9,3879.8,0.99999999]
[1760141226942,0.13617157,3879.9,3879.8,6.15489999]
[1760141227557,0.11712588,3879.9,3879.8,6.15489999]
[1760141227938,0.001,3879.9,3879.8,6.15489999]
[1760141228421,0.001,3879.9,3879.8,6.3849]
[1760141228819,0.001,3879.9,3879.8,6.3619354]
[1760141229250,0.001,3879.9,3879.8,7.36193539]
[1760141229850,0.001,3879.9,3879.8,8.59193539]
[1760141230643,0.001,3879.9,3879.8,7.5919354]
[1760141230952,0.001,3879.9,3879.8,8.59193539]
[1760141231117,0.001,3879.9,3879.8,9.82193539]
[1760141231318,0.001,3879.9,3879.8,32.32193539]
[1760141232481,0.001,3879.9,3879.8,11.05193539]
[1760141232999,0.001,3879.9,3879.8,10.0519354]
[1760141233358,0.001,3879.9,3879.8,11.05193539]
[1760141233880,0.001,3879.9,3879.8,11.2819354]
[1760141235046,0.001,3879.9,3879.8,12.5119354]
[1760141236726,0.001,3879.9,3879.8,13.7419354]
[1760141237578,0.001,3879.9,3879.8,14.74193539]
[1760141237782,0.001,3879.9,3879.8,13.7419354]
[1760141237991,0.001,3879.9,3879.8,15.97193539]
[1760141239408,0.001,3879.9,3879.8,17.20193539]
[1760141240589,0.001,3879.9,3879.8,18.43193539]
[1760141241713,0.001,3879.9,3879.8,17.4319354]
[1760141241913,0.001,3879.9,3879.8,19.66193539]
[1760141242412,0.001,3879.9,3879.8,42.16193539]
[1760141243378,0.001,3879.9,3879.8,20.86616219]
[1760141243909,15.97389538,3880.0,3879.8,20.86616219]
[1760141244379,15.97389538,3880.0,3879.8,43.36616219]
[1760141244781,15.97389538,3880.0,3879.8,44.59616219]
[1760141245392,15.96480485,3880.0,3879.9,22.6288]
[1760141245713,15.96480485,3880.0,3879.9,27.8323]
[1760141246117,15.96480485,3880.0,3879.9,29.0623]
[1760141246288,15.96480485,3880.0,3879.9,28.9335]
[1760141247485,15.96480485,3880.0,3879.9,30.1635]
[1760141248217,15.96480485,3880.0,3879.9,31.16349999]
[1760141248426,15.96480485,3880.0,3879.9,30.1635]
[1760141248630,15.96480485,3880.0,3879.9,31.16349999]
[1760141248837,15.96480485,3880.0,3879.9,32.39349999]
[1760141250220,15.96480485,3880.0,3879.9,33.62349999]
[1760141250400,15.96313593,3880.0,3879.9,33.62349999]
[1760141251722,15.96313593,3880.0,3879.9,34.85349999]
[1760141252989,15.96313593,3880.0,3879.9,36.08349999]
[1760141253189,15.96313593,3880.0,3879.9,35.0835]
[1760141253389,15.96313593,3880.0,3879.9,36.08349999]